Cogmind - Beta 16 @@@ ROGUE MODE // 2026.01.05 @ 19:24:24 Player: beter Result: Self-destructed Performance ------------- Evolutions (1) 500 Regions Visited (4) 800 Robots Destroyed (5) 25 Value Destroyed (50) 50 Prototype IDs (2) 40 Alien Tech Used (0) 0 Bonus (0) 0 TOTAL SCORE: 1415 Bonus ------- None Cogmind --------- Core Integrity 382/400 Matter 250/300 Energy 121/125 System Corruption 0% Temperature Cool (8) Movement Flying (31) Location -9/Storage Parts ------- > --- POWER (1) -------- Light Ion Engine > --- PROPULSION (4) --- Flight Unit Flight Unit Flight Unit Flight Unit > --- UTILITY (2) ------ Small Storage Unit Weapon Shielding > --- WEAPON (2) ------- Small Laser Light Assault Rifle > --- INVENTORY (8) ---- Terrain Scanner Small Laser Light Assault Rifle Autogun Peak State ------------ > --- POWER ------------ Light Ion Engine > --- PROPULSION ------- Flight Unit Flight Unit Flight Unit Flight Unit > --- UTILITY ---------- Terrain Scanner Weapon Shielding > --- WEAPON ----------- Small Laser Light Assault Rifle > --- INVENTORY -------- Small Storage Unit Small Laser Light Assault Rifle [Rating: 9] Favorites ----------- Power Light Ion Engine Engine Light Ion Engine Propulsion Flight Unit Wheel Compact Wheel Flight Unit Flight Unit Utility Weapon Shielding Device Terrain Scanner Storage Small Storage Unit Protection Weapon Shielding Weapon Small Laser Energy Gun Small Laser Ballistic Gun Light Assault Rifle Ballistic Cannon Light Cannon Build | -11 -10 -10 -9 -9 ------- Run | Yrd Mat Min Mat Sto Slots Evolved 2 | . . . 2 . Power . | . . . . . Propulsion 2 | . . . 2 . Utility . | . . . . . Weapon . | . . . . . Parts Attached 19 | 6 9 2 2 . Power 2 | 1 1 . . . Engine 2 | 1 1 . . . Core . | . . . . . Reactor . | . . . . . Propulsion 8 | 2 2 2 2 . Treads . | . . . . . Leg . | . . . . . Wheel 2 | 2 . . . . Hover . | . . . . . Flight 6 | . 2 2 2 . Utility 3 | 1 2 . . . Device 1 | . 1 . . . Storage 1 | 1 . . . . Processor . | . . . . . Hackware . | . . . . . Protection 1 | . 1 . . . Artifact . | . . . . . Weapon 6 | 2 4 . . . Energy Gun 2 | 1 1 . . . Energy Cannon . | . . . . . Ballistic Gun 2 | 1 1 . . . Ballistic Cannon 2 | . 2 . . . Launcher . | . . . . . Special Weapon . | . . . . . Impact Weapon . | . . . . . Slashing Weapon . | . . . . . Piercing Weapon . | . . . . . Special Melee Weapon . | . . . . . Unidentified Prototypes . | . . . . . Parts Lost . | . . . . . Power . | . . . . . Propulsion . | . . . . . Utility . | . . . . . Weapon . | . . . . . Highest Loss Streak . | . . . . . To Critical Strikes . | . . . . . Average Backups 4 | 2 6 5 3 4 Power . | . . . . . Propulsion 1 | 1 2 1 . . Utility . | . . 1 1 1 Weapon 2 | . 2 2 2 3 Tool/Special . | . . . . . Unused Backups 7 | . 4 2 . 1 Power . | . . . . . Propulsion 4 | . 4 . . . Utility . | . . . . . Weapon 3 | . . 2 . 1 Tool/Special . | . . . . . Average Slot Usage (%) 96 | . 92 100 96 100 Engine 13 | . 14 14 11 11 Wheel 5 | . 15 . . . Flight 26 | . 10 28 40 44 Device 9 | . 11 14 3 . Storage 6 | . 8 . 7 11 Protection 8 | . 2 14 11 11 Energy Gun 11 | . 8 14 11 11 Ballistic Gun 10 | . 6 14 11 11 Ballistic Cannon 4 | . 13 . . . Peak Build Rating 9 | 6 7 7 9 9 Average Rating 7 | 5 6 7 8 9 On Entrance 5 | . 6 7 7 9 Avg Prop Armor Cover (%) . | . . . . . Naked Turns . | . . . . . Heaviest Build 17 | 12 17 7 11 11 Greatest Support 26 | 26 26 8 16 16 Greatest Overweight (x) 3 | 3 1 . . . Average Overweight (x) . | . . . . . Largest Inventory Capacity 8 | 8 8 5 8 8 Average Capacity 6 | 7 6 5 7 8 Most Carried 8 | 6 8 5 4 4 Average Carried 4 | 2 6 4 3 4 Final Capacity 8 | 8 5 5 8 8 Final Carried 6 | 6 5 5 4 4 Class Distribution -------------------- 75% | Mutant 24% | Scavenger-Sprinter Dominant Class ---------------- Mutant | -10/Materials Mutant | -10/Mines Scavenger-Sprinter | -9/Materials Scavenger-Sprinter | -9/Storage Resources | -11 -10 -10 -9 -9 ----------- Run | Yrd Mat Min Mat Sto Matter Collected 387 | 204 52 75 . 56 Remotely . | . . . . . Salvage Created 67 | . 23 44 . . Parts 10 | . 3 7 . . Haulers Intercepted . | . . . . . Recyclers Shooed . | . . . . . Parts Field Recycled . | . . . . . Retrieved Matter . | . . . . . Parts Self-Destructed . | . . . . . Prevented . | . . . . . Parts Restored . | . . . . . Kills | -11 -10 -10 -9 -9 ------- Run | Yrd Mat Min Mat Sto Combat Hostiles Destroyed 5 | . 2 3 . . Guns 3 | . . 3 . . Cannons 2 | . 2 . . . Classes Destroyed 1 | . 1 . . . Swarmer 5 | . 2 3 . . Best Kill Streak 3 | . 2 3 . . Combat Bots Only 3 | . 2 3 . . Max Kills in Single Turn 1 | . 1 1 . . Gunslinging . | . . . . . Exploded . | . . . . . Melee . | . . . . . Uniques/NPCs Destroyed . | . . . . . Combat | -11 -10 -10 -9 -9 -------- Run | Yrd Mat Min Mat Sto Hostile Shots Fired 30 | . 10 9 4 7 Missed 15 | . 6 2 2 5 Hits 15 | . 4 7 2 2 Projectile 15 | . 4 7 2 2 Damage Taken 149 | . 34 52 33 30 Core 45 | . 8 19 18 . Absorbed by Shields . | . . . . . Redirected to Shielding 2 | . . 2 . . Core Remaining (%) 94 | 100 . 89 . . Volleys Fired 10 | . 4 4 . 2 Largest 2 | . 2 2 . 2 Hottest 60 | . 60 60 . 60 Shots Fired 20 | . 8 8 . 4 Gun 12 | . . 8 . 4 Cannon 8 | . 8 . . . Launcher . | . . . . . Special . | . . . . . Kinetic 14 | . 8 4 . 2 Thermal 6 | . . 4 . 2 Explosive . | . . . . . Electromagnetic . | . . . . . Robot Hit Streak 3 | . 2 3 . . Robot Miss Streak 3 | . 1 3 . . Penetration Max . | . . . . . Secondary Targets 2 | . . 2 . . Max Gunslinging Chain 1 | . . 1 . . Shots Hit Robots 8 | . 4 4 . . Core Hits 5 | . 2 3 . . Critical Kills . | . . . . . Critical Parts Destroyed . | . . . . . Critical Strikes . | . . . . . Melee Attacks . | . . . . . Impact . | . . . . . Slashing . | . . . . . Piercing . | . . . . . Sneak Attacks . | . . . . . Combat Hostiles . | . . . . . Follow-up Attacks . | . . . . . Damage Inflicted 108 | . 68 40 . . Guns 40 | . . 40 . . Cannons 68 | . 68 . . . Explosions . | . . . . . Melee . | . . . . . Ramming . | . . . . . Kinetic 75 | . 68 7 . . Thermal 33 | . . 33 . . Explosive . | . . . . . Electromagnetic . | . . . . . Impact . | . . . . . Slashing . | . . . . . Piercing . | . . . . . Highest Corruption . | . . . . . Average Corruption . | . . . . . Corruption Purged . | . . . . . Corruption Blocked . | . . . . . Overload Shots . | . . . . . Overflow Damage . | . . . . . Projectiles . | . . . . . Explosions . | . . . . . Melee . | . . . . . Knockbacks . | . . . . . Impact . | . . . . . Kinetic . | . . . . . Secondary . | . . . . . Self-Inflicted Damage . | . . . . . Shots . | . . . . . Rammed . | . . . . . Targets Rammed . | . . . . . Kicked . | . . . . . Crushed . | . . . . . Highest Temperature 48 | . . 48 6 33 Average Temperature 21 | . . 27 6 16 Received Heat Transfer 18 | . . . 9 9 Siege Activations . | . . . . . Martial Activations . | . . . . . Shielding Activations . | . . . . . Robots Disrupted . | . . . . . Combat Hostiles . | . . . . . Robots Corrupted . | . . . . . Combat Hostiles . | . . . . . Parts Fried . | . . . . . Impact Corruptions . | . . . . . Robots Melted . | . . . . . Combat Hostiles . | . . . . . Parts Melted . | . . . . . Heat Transferred 75 | . . 75 . . Parts Sabotaged . | . . . . . Parts Stolen . | . . . . . Parts Stripped . | . . . . . Power Chain Reactions . | . . . . . Alert | -11 -10 -10 -9 -9 ------- Run | Yrd Mat Min Mat Sto Maximum Alert Level . | . . . . . Low Security (%) 100 | 100 100 100 100 100 Level 1 . | . . . . . Level 2 . | . . . . . Level 3 . | . . . . . Level 4 . | . . . . . Level 5 . | . . . . . High Security . | . . . . . Max Security . | . . . . . Peak Influence 70 | . 50 70 7 48 Initial 9 | . . 9 7 . Average 19 | . 15 32 5 26 Influence Increases 193 | . 65 70 . 58 Destroy 0b10 Robot/C 100 | . 40 60 . . Destroy Leader 20 | . 10 10 . . Successful Hack 28 | . . . . 28 Partial Spotted 45 | . 15 . . 30 Influence Decreases 175 | . 40 75 20 40 Entered New Map 29 | . . 16 13 . Time Decay 146 | . 40 59 7 40 Squads Dispatched 1 | . 1 . . . Investigation . | . . . . . Extermination . | . . . . . Reinforcement 1 | . 1 . . . Assault . | . . . . . Garrison . | . . . . . Intercept . | . . . . . Searches Triggered . | . . . . . Construction Impeded . | . . . . . Haulers Reinforced . | . . . . . Active Scanning Responses . | . . . . . Cargo Convoy Interrupts . | . . . . . Stealth | -11 -10 -10 -9 -9 --------- Run | Yrd Mat Min Mat Sto Distress Signals 3 | . 1 . . 2 Communications Jammed . | . . . . . Distress Signals . | . . . . . Times Spotted 20 | . 6 3 1 10 Peak Tracking Total 7 | . 4 3 1 7 Tactical Retreats . | . . . . . Traps | -11 -10 -10 -9 -9 ------- Run | Yrd Mat Min Mat Sto Traps Triggered . | . . . . . Indirectly . | . . . . . Trap Hack Attempts . | . . . . . Triggered . | . . . . . Disarmed . | . . . . . Reprogrammed 4 | . . . . 4 Reused . | . . . . . Traps Extracted . | . . . . . Installed . | . . . . . Triggered . | . . . . . Machines | -11 -10 -10 -9 -9 ---------- Run | Yrd Mat Min Mat Sto Machines Disabled . | . . . . . Max in Single Turn . | . . . . . Machines Repaired . | . . . . . Machines Dismantled . | . . . . . Machines Sabotaged . | . . . . . Overloaded Fab Kills . | . . . . . Hacking | -11 -10 -10 -9 -9 --------- Run | Yrd Mat Min Mat Sto Machines Accessed 6 | . 1 . . 5 Terminals 4 | . . . . 4 Fabricators . | . . . . . Repair Stations . | . . . . . Recycling Units 2 | . 1 . . 1 Scanalyzers . | . . . . . Garrison Access . | . . . . . Total Hacks 23 | . 3 . . 20 Successful 11 | . 2 . . 9 Failed 12 | . 1 . . 11 Catastrophic 3 | . . . . 3 Database Lockouts . | . . . . . Manual 5 | . . . . 5 Terminals 18 | . . . . 18 Fabricators . | . . . . . Repair Stations . | . . . . . Recycling Units 5 | . 3 . . 2 Scanalyzers . | . . . . . Garrison Access . | . . . . . Terminal Hacks 7 | . . . . 7 Robot Analysis 2 | . . . . 2 Prototype ID Bank 1 | . . . . 1 Emergency Access Points 1 | . . . . 1 Alert Level 1 | . . . . 1 Locate Traps 1 | . . . . 1 Reprogram Traps 1 | . . . . 1 Fabricator Hacks . | . . . . . Repair Station Hacks . | . . . . . Recycling Unit Hacks 4 | . 2 . . 2 Recycle Component 1 | . 1 . . . Process 1 | . . . . 1 Retrieve Matter 2 | . 1 . . 1 Scanalyzer . | . . . . . Garrison Access Hacks . | . . . . . Unauthorized Hacks . | . . . . . Terminals . | . . . . . Fabricators . | . . . . . Repair Stations . | . . . . . Recycling Units . | . . . . . Scanalyzers . | . . . . . Garrison Access . | . . . . . Data Cores Recovered . | . . . . . Used . | . . . . . Hacking Detections 5 | . 1 . . 4 Full Trace Events . | . . . . . Feedback Events . | . . . . . Feedback Blocked . | . . . . . Robot Schematics Acquired . | . . . . . Robots Built . | . . . . . Authchips . | . . . . . Time . | . . . . . Total Robot Build Rating . | . . . . . Part Schematics Acquired . | . . . . . Parts Built . | . . . . . Authchips . | . . . . . Time . | . . . . . Total Part Build Rating . | . . . . . Part Studies Acquired . | . . . . . Parts Repaired . | . . . . . Time . | . . . . . Parts Recycled 1 | . 1 . . . Recycled Matter 1 | . . . . 1 Retrieved Matter 1 | . . . . 1 Retrieved Components . | . . . . . Parts Scanalyzed . | . . . . . Part Schematics Acquired . | . . . . . Parts Damaged . | . . . . . Bothacking | -11 -10 -10 -9 -9 ------------ Run | Yrd Mat Min Mat Sto Used RIF Installer . | . . . . . Robots Hacked . | . . . . . Non-combat . | . . . . . Combat . | . . . . . Robot Hacks Applied . | . . . . . Relay Couplers Released . | . . . . . Fabnet Peak Effective % . | . . . . . Robots Rewired . | . . . . . Allies Hacked . | . . . . . Hacks Repelled . | . . . . . Allies | -11 -10 -10 -9 -9 -------- Run | Yrd Mat Min Mat Sto Total Allies . | . . . . . Largest Group . | . . . . . Highest-Rated Group . | . . . . . Highest-Rated Ally . | . . . . . Total Orders . | . . . . . Ally Attacks . | . . . . . Total Damage . | . . . . . Kills . | . . . . . Allies Corrupted . | . . . . . Allies Melted . | . . . . . Intel | -11 -10 -10 -9 -9 ------- Run | Yrd Mat Min Mat Sto Active Infowar (turns) 266 | . 126 138 2 . Terrain 266 | . 126 138 2 . Robot Analysis Total 2 | . . . . 2 Derelict Logs Recovered 2 | . . 2 . . Drone Launches . | . . . . . Drone Recoveries . | . . . . . Exploration | -11 -10 -10 -9 -9 ------------- Run | Yrd Mat Min Mat Sto Turns Passed 474 | 70 150 138 26 90 Spaces Moved 899 | 59 196 316 56 272 Core 9 | 9 . . . . Treads . | . . . . . Legs . | . . . . . Wheels 126 | 50 76 . . . Hover . | . . . . . Flight 764 | . 120 316 56 272 Fastest Speed 31 | 50 37 37 31 31 Average Speed 43 | 94 59 37 31 31 Slowest Speed 200 | 200 120 37 31 31 Overloaded Moves . | . . . . . Propulsion Burnouts . | . . . . . Robots Hopped 2 | . 1 1 . . Potential Cave-ins . | . . . . . Cave-ins Triggered . | . . . . . Exploration Rate (%) 36 | 4 44 87 11 38 Regions Visited 4 Branch Regions 2 Pre-discovered Areas 1 | . . 1 . . Known Exits Taken . | . . . . . Unknown Exits Taken 4 | 1 1 1 1 . Scrap Searched 1 | . . 1 . . Spaces Dug . | . . . . . Terrain Destroyed . | . . . . . Melee . | . . . . . Projectile . | . . . . . AOE . | . . . . . Terrain Rammed . | . . . . . Walls Destroyed . | . . . . . Machines Disabled . | . . . . . Actions | -11 -10 -10 -9 -9 --------- Run | Yrd Mat Min Mat Sto Total 957 | 70 220 330 63 274 Wait 6 | . . 2 4 . Move 891 | 58 193 313 55 272 Hop 2 | . 1 1 . . Pick Up 15 | 6 5 3 1 . Fast Attach 10 | 6 4 . . . Attach 3 | . 1 . 2 . Detach . | . . . . . Swap 7 | . 4 2 1 . Drop 13 | . 8 5 . . Fire 10 | . 4 4 . 2 Melee . | . . . . . Ram . | . . . . . Kick . | . . . . . Crush . | . . . . . Escape Stasis . | . . . . . Rewire . | . . . . . Trap . | . . . . . Miscellaneous . | . . . . . Route ------- -11/Scrapyard -10/Materials -10/Mines -9/Materials -9/Storage History --------- Turn | Location | Event 36 | -11/Scrapyard | Discovered new exit (range 15) 71 | -11/Scrapyard | Entered Materials 130 | -10/Materials | Discovered new exit (range 8) 221 | -10/Materials | Entered Mines 233 | -10/Mines | Learned location of Storage (-9) 240 | -10/Mines | A weapon hastily lodged in a ceiling crevice suddenly fell to the ground 248 | -10/Mines | Learned Materials terminal intel 308 | -10/Mines | Build established: Mutant 351 | -10/Mines | Discovered new exit (range 3) 359 | -10/Mines | Entered Materials 359 | -9/Materials | Evolved 2 slots: Propulsion x2 360 | -9/Materials | Loaded intel: 12 terminal locations 371 | -9/Materials | Discovered new exit (range 5) 385 | -9/Materials | Entered Storage 475 | -9/Storage | Self-destructed Last Messages --------------- EM Shotgun (1) >>Retrieve(Matter) Matter ejected: 1 00422_ Connecting with Terminal... >>Access(Emergency) Found 2 emergency access doors: (27,17) (27,23) Map updated. >>Traps(Locate) Found 4 traps in 1 array: 4x Explosive Trap Map updated. >>Traps(Reprogram) Reprogrammed 4 Explosive Traps. 00425_ K-01 Serf collects debris. 00428_ W-16 Scout sends out distress signal. 00430_ K-01 Serf collects debris. 00436_ Connecting with Terminal... 00472_ W-16 Scout sends out distress signal. Map ----- +----------------------------------------------------+ | | | | | | | | | | | | | | | | | | | | | ?????????????????###########?????????????????????? | | ?????????????????# #?????????????????????? | | ?????????###?????# [ #?????????????????????? | | ##########T####### #???????????????##????? | | + = = #???????????#### ###??? | | ######### #####+############## ^ #??? | | ????????# + ""?? | | ????????# ##+################# ^ G"? | | ????????####### # #?????????# ^ "" ? | | ??????????????# # #?????????# """ """ ##?? | | """"??????????# # #?????????# """ """ #??? | | # #??????????# # #?????????#^""" """????? | | T #??????????# kY #???#######? ??????? | | # #??????????# # k #???# ####/######### | | # #??????????# # ##### s | | + #??????????# # @/ T s s | | # #??????????# # k ##### w | | # #??????????# ###+######???# ####+######### | | # #??????????# #?# #????????#######????????????? | | # #??????????# #?# #???????????????????????????? | | # #??????????# #?# #???????????????????????????? | | # ?????????? #?# #???????????????????????????? | | # ?????????? #?# #???????????????????????????? | | ####????????##+#####+#???????????????????????????? | | #???????????# #???????????????????????????? | | #???????????# ![#???????????????????????????? | | #???????????# #???????????????????????????? | | #???????????# ! #???????????????????????????? | | ????????????# #???????????????????????????? | | ????????????# #???????????????????????????? | | ????????????# ! #???????????????????????????? | | ????????????# #???????????????????????????? | | ????????????# #???????????????????????????? | | ????????????#+#######????????????????????????????? | | ?????????????????????????????????????????????????? | | ?????????????????????????????????????????????????? | | ?????????????????????????????????????????????????? | | ?????????????????????????????????????????????????? | | ?????????????????????????????????????????????????? | | ?????????????????????????????????????????????????? | +----------------------------------------------------+ Best States ------------- Heat Dissipation 28 Energy Generation 10 Energy Capacity 250 Matter Stores 252 Matter Capacity 300 Sight Range 16 Terrain Scan Range 14 Terrain Scan Density 10 Weapon Shielding 33 Evasion (%) 63 Item Schematics ----------------- None Robot Schematics ------------------ None Fabricated ------------ Nothing Repaired ---------- Nothing Studied --------- None Alien Tech Used ----------------- None Achievements -------------- None Challenges ------------ None Game ------ Seed ArmageddonFlakTreads Manual? 0 Play Time 00:15:00 Cumulative 18.2 hours Start 2026.01.05 @ 12:17:29 End 2026.01.05 @ 19:24:24 Sessions 3 Manual Loads 0 Difficulty Rogue Special Mode None Game No. 23 Rogue 23 Adventurer 0 Explorer 0 Win Type - Total 0 Types 0/0/0/0/0/0/0/0/0/0 Lore% 10 Gallery% 26 Achievement% 13 Wizard Run 0 Options --------- Layout 1 ASCII 0 Keyboard 0 Movement Mouse Keybinds 0 Fullscreen 1 Font 32/SmallcapsGlow Map View 50x35 Zoom Use 0% Tactical HUD 1 Map Filters NONE Filters NONE Steam X RUN: 17d38209-8c03-470a-abf8-3e2bc1c955f3